[Event "Titled Tuesday Blitz April 19 Late 2022"]
[White "Sowa, Ryan"]
[Black "Andreikin, Dmitry"]
[WhiteFideId "30901693"]
[BlackFideId "4158814"]
[WhiteElo "2620"]
[BlackElo "2736"]
[Result "0-1"]
[Round "03"]
[TimeControl "180+1"]
[Date "2022.04.19"]
[WhiteClock "0:00:05"]
[BlackClock "0:01:09"]

1. Nf3 {[%clk 0:03:00]}  d5 {[%clk 0:02:59]} 2. d4 {[%clk 0:03:00]}  Nf6 {[%clk 0:02:59]} 3. c4 {[%clk 0:03:00]}  e6 {[%clk 0:02:59]} 4. g3 {[%clk 0:03:00]}  Bb4+ {[%clk 0:02:57]} 5. Bd2 {[%clk 0:03:00]}  Be7 {[%clk 0:02:57]} 6. Bg2 {[%clk 0:03:00]}  O-O {[%clk 0:02:58]} 7. O-O {[%clk 0:02:59]}  a5 {[%clk 0:02:59]} 8. Qc2 {[%clk 0:02:59]}  c6 {[%clk 0:02:57]} 9. Rd1 {[%clk 0:02:59]}  b5 {[%clk 0:02:56]} 10. c5 {[%clk 0:02:58]}  b4 {[%clk 0:02:55]} 11. a3 {[%clk 0:02:54]}  bxa3 {[%clk 0:02:54]} 12. Rxa3 {[%clk 0:02:51]}  Ne4 {[%clk 0:02:54]} 13. Be1 {[%clk 0:02:46]}  Qc7 {[%clk 0:02:54]} 14. Nc3 {[%clk 0:02:42]}  f5 {[%clk 0:02:53]} 15. Na4 {[%clk 0:02:41]}  Nd7 {[%clk 0:02:53]} 16. Rda1 {[%clk 0:02:04]}  Ba6 {[%clk 0:02:48]} 17. Nb6 {[%clk 0:01:51]}  Nxb6 {[%clk 0:02:47]} 18. Bxa5 {[%clk 0:01:51]}  Bb5 {[%clk 0:02:24]} 19. Bxb6 {[%clk 0:01:51]}  Rxa3 {[%clk 0:02:24]} 20. Rxa3 {[%clk 0:01:51]}  Qb8 {[%clk 0:02:20]} 21. Ne5 {[%clk 0:01:49]}  Qe8 {[%clk 0:02:11]} 22. e3 {[%clk 0:01:45]}  Bf6 {[%clk 0:02:11]} 23. f3 {[%clk 0:01:11]}  Ng5 {[%clk 0:02:11]} 24. h4 {[%clk 0:01:03]}  Bxe5 {[%clk 0:02:03]} 25. dxe5 {[%clk 0:01:02]}  Nf7 {[%clk 0:02:04]} 26. f4 {[%clk 0:01:01]}  Nh6 {[%clk 0:02:03]} 27. Bf3 {[%clk 0:01:01]}  Qg6 {[%clk 0:02:02]} 28. Kh2 {[%clk 0:00:59]}  Ng4+ {[%clk 0:02:02]} 29. Bxg4 {[%clk 0:00:57]}  Qxg4 {[%clk 0:02:02]} 30. b4 {[%clk 0:00:43]}  Qf3 {[%clk 0:01:56]} 31. Ra1 {[%clk 0:00:29]}  Qxe3 {[%clk 0:01:52]} 32. Rg1 {[%clk 0:00:26]}  h6 {[%clk 0:01:46]} 33. Rg2 {[%clk 0:00:26]}  Ra8 {[%clk 0:01:45]} 34. Ba5 {[%clk 0:00:25]}  d4 {[%clk 0:01:33]} 35. Qd2 {[%clk 0:00:24]}  Qe4 {[%clk 0:01:31]} 36. Rg1 {[%clk 0:00:24]}  d3 {[%clk 0:01:26]} 37. Re1 {[%clk 0:00:21]}  Qd5 {[%clk 0:01:26]} 38. Kg1 {[%clk 0:00:20]}  Ra7 {[%clk 0:01:26]} 39. Kf2 {[%clk 0:00:20]}  Rd7 {[%clk 0:01:25]} 40. Rg1 {[%clk 0:00:15]}  Qd4+ {[%clk 0:01:25]} 41. Kf1 {[%clk 0:00:16]}  Qe4 {[%clk 0:01:21]} 42. Kf2 {[%clk 0:00:14]}  Kh7 {[%clk 0:01:18]} 43. Re1 {[%clk 0:00:15]}  Qd4+ {[%clk 0:01:19]} 44. Re3 {[%clk 0:00:12]}  Kg6 {[%clk 0:01:17]} 45. Kf3 {[%clk 0:00:13]}  Kh5 {[%clk 0:01:14]} 46. Kf2 {[%clk 0:00:13]}  Kg6 {[%clk 0:01:10]} 47. Kf3 {[%clk 0:00:13]}  Qd5+ {[%clk 0:01:09]} 48. Kf2 {[%clk 0:00:12]}  Qh1 {[%clk 0:01:09]} 49. Re1 {[%clk 0:00:05]}  Qh2+ {[%clk 0:01:09]} 50. Ke3 {[%clk 0:00:05]}  Qxg3# {[%clk 0:01:09]} 0-1


[Site "https://www.chess.com"]

[Event "Titled Tuesday Blitz April 19 Late 2022"]
[White "Taichman, Ori"]
[Black "Debray, Christopher"]
[WhiteFideId "2804069"]
[BlackFideId "630810"]
[WhiteElo "2227"]
[BlackElo "2377"]
[Result "0-1"]
[Round "03"]
[TimeControl "180+1"]
[Date "2022.04.19"]
[WhiteClock "0:00:07"]
[BlackClock "0:00:10"]

1. e4 {[%clk 0:02:58]}  c6 {[%clk 0:02:58]} 2. d4 {[%clk 0:02:57]}  d5 {[%clk 0:02:59]} 3. e5 {[%clk 0:02:58]}  c5 {[%clk 0:03:00]} 4. dxc5 {[%clk 0:02:57]}  e6 {[%clk 0:03:00]} 5. a3 {[%clk 0:02:57]}  Bxc5 {[%clk 0:03:00]} 6. Nf3 {[%clk 0:02:55]}  f5 {[%clk 0:02:59]} 7. b4 {[%clk 0:02:46]}  Bb6 {[%clk 0:02:59]} 8. Bg5 {[%clk 0:02:45]}  Ne7 {[%clk 0:02:58]} 9. h4 {[%clk 0:02:45]}  a5 {[%clk 0:02:55]} 10. Nc3 {[%clk 0:02:37]}  axb4 {[%clk 0:02:53]} 11. axb4 {[%clk 0:02:23]}  Rxa1 {[%clk 0:02:54]} 12. Qxa1 {[%clk 0:02:23]}  h6 {[%clk 0:02:52]} 13. Bd2 {[%clk 0:01:57]}  O-O {[%clk 0:02:50]} 14. Bd3 {[%clk 0:01:49]}  Nbc6 {[%clk 0:02:50]} 15. Ne2 {[%clk 0:01:49]}  Bc7 {[%clk 0:02:41]} 16. b5 {[%clk 0:01:44]}  Na5 {[%clk 0:02:39]} 17. h5 {[%clk 0:01:36]}  Nc4 {[%clk 0:02:38]} 18. Bb4 {[%clk 0:01:20]}  Ba5 {[%clk 0:02:32]} 19. Bxa5 {[%clk 0:01:20]}  Qxa5+ {[%clk 0:02:30]} 20. Qxa5 {[%clk 0:01:19]}  Nxa5 {[%clk 0:02:30]} 21. Rh4 {[%clk 0:01:20]}  Bd7 {[%clk 0:02:29]} 22. Ra4 {[%clk 0:01:14]}  b6 {[%clk 0:02:28]} 23. Nf4 {[%clk 0:01:12]}  Rc8 {[%clk 0:02:23]} 24. Nd4 {[%clk 0:01:11]}  Kf7 {[%clk 0:02:21]} 25. Kd2 {[%clk 0:01:08]}  g5 {[%clk 0:02:16]} 26. hxg6+ {[%clk 0:01:06]}  Nxg6 {[%clk 0:02:16]} 27. Nxg6 {[%clk 0:01:07]}  Kxg6 {[%clk 0:02:16]} 28. Ne2 {[%clk 0:01:06]}  Kf7 {[%clk 0:02:15]} 29. Rh4 {[%clk 0:01:05]}  Kg7 {[%clk 0:02:14]} 30. Nf4 {[%clk 0:01:05]}  Nc4+ {[%clk 0:02:13]} 31. Bxc4 {[%clk 0:01:05]}  Rxc4 {[%clk 0:02:06]} 32. Nh5+ {[%clk 0:01:04]}  Kg6 {[%clk 0:02:06]} 33. Rxc4 {[%clk 0:01:01]}  dxc4 {[%clk 0:02:07]} 34. Nf4+ {[%clk 0:00:53]}  Kf7 {[%clk 0:01:59]} 35. Kc3 {[%clk 0:00:47]}  Bxb5 {[%clk 0:02:00]} 36. Kb4 {[%clk 0:00:32]}  Ba6 {[%clk 0:02:00]} 37. c3 {[%clk 0:00:32]}  Ke7 {[%clk 0:01:50]} 38. Ne2 {[%clk 0:00:31]}  Kf7 {[%clk 0:01:31]} 39. Nf4 {[%clk 0:00:31]}  Ke7 {[%clk 0:01:31]} 40. Nh5 {[%clk 0:00:29]}  Kf7 {[%clk 0:01:27]} 41. Nf6 {[%clk 0:00:28]}  f4 {[%clk 0:00:56]} 42. Ne4 {[%clk 0:00:14]}  Kg6 {[%clk 0:00:52]} 43. Nd6 {[%clk 0:00:14]}  h5 {[%clk 0:00:46]} 44. Ne8 {[%clk 0:00:09]}  h4 {[%clk 0:00:37]} 45. Nc7 {[%clk 0:00:08]}  Kf5 {[%clk 0:00:23]} 46. f3 {[%clk 0:00:06]}  Bb7 {[%clk 0:00:20]} 47. Kxc4 {[%clk 0:00:06]}  Bxf3 {[%clk 0:00:20]} 48. Ne8 {[%clk 0:00:05]}  Bxg2 {[%clk 0:00:18]} 49. Kd4 {[%clk 0:00:06]}  h3 {[%clk 0:00:18]} 50. Nd6+ {[%clk 0:00:06]}  Kg4 {[%clk 0:00:17]} 51. Ne8 {[%clk 0:00:05]}  h2 {[%clk 0:00:17]} 52. Nf6+ {[%clk 0:00:06]}  Kg5 {[%clk 0:00:15]} 53. Nh7+ {[%clk 0:00:06]}  Kh6 {[%clk 0:00:14]} 54. Nf8 {[%clk 0:00:06]}  h1=Q {[%clk 0:00:14]} 55. Nxe6 {[%clk 0:00:07]}  f3 {[%clk 0:00:13]} 56. Kd5 {[%clk 0:00:05]}  f2+ {[%clk 0:00:13]} 57. Kd6 {[%clk 0:00:06]}  f1=Q {[%clk 0:00:14]} 58. c4 {[%clk 0:00:06]}  Qd1+ {[%clk 0:00:13]} 59. Ke7 {[%clk 0:00:07]}  Qh4+ {[%clk 0:00:12]} 60. Ke8 {[%clk 0:00:07]}  Bh3 {[%clk 0:00:11]} 61. c5 {[%clk 0:00:07]}  Bxe6 {[%clk 0:00:10]} 62. cxb6 {[%clk 0:00:07]} 0-1


[Site "https://www.chess.com"]

[Event "Titled Tuesday Blitz April 19 Late 2022"]
[White "Tristan, Leonardo"]
[Black "Jobava, Baadur"]
[WhiteFideId "113816"]
[BlackFideId "13601520"]
[WhiteElo "2404"]
[BlackElo "2617"]
[Result "0-1"]
[Round "03"]
[TimeControl "180+1"]
[Date "2022.04.19"]
[WhiteClock "0:01:07"]
[BlackClock "0:01:54"]

1. d4 {[%clk 0:03:00]}  Nf6 {[%clk 0:02:57]} 2. Nf3 {[%clk 0:03:01]}  g6 {[%clk 0:02:57]} 3. Bf4 {[%clk 0:03:01]}  Bg7 {[%clk 0:02:57]} 4. e3 {[%clk 0:03:02]}  O-O {[%clk 0:02:58]} 5. Be2 {[%clk 0:03:02]}  d6 {[%clk 0:02:58]} 6. O-O {[%clk 0:03:03]}  Nh5 {[%clk 0:02:46]} 7. Bg5 {[%clk 0:03:03]}  h6 {[%clk 0:02:46]} 8. Bh4 {[%clk 0:03:03]}  g5 {[%clk 0:02:47]} 9. Nfd2 {[%clk 0:03:04]}  gxh4 {[%clk 0:02:45]} 10. Bxh5 {[%clk 0:03:03]}  e5 {[%clk 0:02:44]} 11. d5 {[%clk 0:02:58]}  e4 {[%clk 0:02:40]} 12. Qc1 {[%clk 0:02:22]}  Qg5 {[%clk 0:02:28]} 13. Be2 {[%clk 0:02:17]}  Bh3 {[%clk 0:02:27]} 14. g3 {[%clk 0:02:14]}  hxg3 {[%clk 0:02:27]} 15. hxg3 {[%clk 0:02:13]}  f5 {[%clk 0:02:27]} 16. Rd1 {[%clk 0:01:52]}  Be5 {[%clk 0:02:23]} 17. Nf1 {[%clk 0:01:44]}  Nd7 {[%clk 0:02:20]} 18. Nbd2 {[%clk 0:01:35]}  Qg7 {[%clk 0:02:05]} 19. Kh2 {[%clk 0:01:29]}  Bxb2 {[%clk 0:02:04]} 20. Qb1 {[%clk 0:01:24]}  Bxf1 {[%clk 0:02:04]} 21. Nxf1 {[%clk 0:01:23]}  Bxa1 {[%clk 0:02:04]} 22. Qxa1 {[%clk 0:01:22]}  Qxa1 {[%clk 0:02:05]} 23. Rxa1 {[%clk 0:01:23]}  Kg7 {[%clk 0:02:03]} 24. Rb1 {[%clk 0:01:22]}  Nc5 {[%clk 0:02:03]} 25. Nd2 {[%clk 0:01:17]}  Kf6 {[%clk 0:02:03]} 26. Nc4 {[%clk 0:01:16]}  a6 {[%clk 0:02:04]} 27. Na5 {[%clk 0:01:16]}  Rab8 {[%clk 0:02:02]} 28. c4 {[%clk 0:01:14]}  Ke5 {[%clk 0:02:02]} 29. Kg2 {[%clk 0:01:14]}  Kf6 {[%clk 0:01:55]} 30. Rh1 {[%clk 0:01:13]}  Rh8 {[%clk 0:01:55]} 31. Rb1 {[%clk 0:01:13]}  h5 {[%clk 0:01:55]} 32. Kh3 {[%clk 0:01:13]}  h4 {[%clk 0:01:55]} 33. gxh4 {[%clk 0:01:12]}  Ke5 {[%clk 0:01:55]} 34. h5 {[%clk 0:01:08]}  f4 {[%clk 0:01:55]} 35. Rg1 {[%clk 0:01:08]}  Rbg8 {[%clk 0:01:55]} 36. Rb1 {[%clk 0:01:07]}  f3 {[%clk 0:01:54]} 37. Bf1 {[%clk 0:01:07]}  Rxh5# {[%clk 0:01:54]} 0-1


[Site "https://www.chess.com"]

[Event "Titled Tuesday Blitz April 19 Late 2022"]
[White "Winkels, Marcel"]
[Black "Riehle, Marco"]
[WhiteFideId "1003887"]
[BlackFideId "12904392"]
[WhiteElo "1900"]
[BlackElo "2462"]
[Result "0-1"]
[Round "03"]
[TimeControl "180+1"]
[Date "2022.04.19"]
[WhiteClock "0:00:07"]
[BlackClock "0:00:58"]

1. d4 {[%clk 0:03:00]}  d5 {[%clk 0:02:53]} 2. Nc3 {[%clk 0:03:01]}  e6 {[%clk 0:02:49]} 3. Bf4 {[%clk 0:03:01]}  Nf6 {[%clk 0:02:44]} 4. e3 {[%clk 0:02:54]}  c5 {[%clk 0:02:44]} 5. Qd2 {[%clk 0:02:46]}  Bd6 {[%clk 0:02:43]} 6. Bxd6 {[%clk 0:02:43]}  Qxd6 {[%clk 0:02:43]} 7. Nf3 {[%clk 0:02:42]}  O-O {[%clk 0:02:43]} 8. Be2 {[%clk 0:02:41]}  b6 {[%clk 0:02:42]} 9. O-O {[%clk 0:02:40]}  Ba6 {[%clk 0:02:42]} 10. Nb5 {[%clk 0:02:34]}  Bxb5 {[%clk 0:02:40]} 11. Bxb5 {[%clk 0:02:33]}  c4 {[%clk 0:02:38]} 12. c3 {[%clk 0:02:31]}  Ne4 {[%clk 0:02:37]} 13. Qd1 {[%clk 0:02:30]}  f5 {[%clk 0:02:37]} 14. Ba4 {[%clk 0:02:28]}  a5 {[%clk 0:02:34]} 15. Ne5 {[%clk 0:02:27]}  f4 {[%clk 0:02:34]} 16. f3 {[%clk 0:02:26]}  Ng5 {[%clk 0:02:33]} 17. exf4 {[%clk 0:02:25]}  Rxf4 {[%clk 0:02:31]} 18. Qd2 {[%clk 0:02:24]}  Rf5 {[%clk 0:02:31]} 19. g4 {[%clk 0:02:07]}  Nh3+ {[%clk 0:02:30]} 20. Kh1 {[%clk 0:02:03]}  Rf8 {[%clk 0:02:29]} 21. f4 {[%clk 0:01:59]}  Qe7 {[%clk 0:02:16]} 22. g5 {[%clk 0:01:52]}  b5 {[%clk 0:02:00]} 23. Bc2 {[%clk 0:01:46]}  Nd7 {[%clk 0:01:57]} 24. Qe3 {[%clk 0:01:41]}  Nxe5 {[%clk 0:01:54]} 25. dxe5 {[%clk 0:01:35]}  Nxg5 {[%clk 0:01:49]} 26. fxg5 {[%clk 0:01:33]}  b4 {[%clk 0:01:50]} 27. Qh3 {[%clk 0:01:31]}  g6 {[%clk 0:01:47]} 28. Rf6 {[%clk 0:01:29]}  a4 {[%clk 0:01:45]} 29. Raf1 {[%clk 0:01:27]}  a3 {[%clk 0:01:43]} 30. Bxg6 {[%clk 0:01:08]}  axb2 {[%clk 0:01:37]} 31. Bb1 {[%clk 0:00:47]}  bxc3 {[%clk 0:01:31]} 32. Qxc3 {[%clk 0:00:44]}  Rxf6 {[%clk 0:01:26]} 33. gxf6 {[%clk 0:00:42]}  Qb7 {[%clk 0:01:25]} 34. Rg1+ {[%clk 0:00:41]}  Kf8 {[%clk 0:01:25]} 35. Qf3 {[%clk 0:00:33]}  Rb8 {[%clk 0:01:19]} 36. Qf4 {[%clk 0:00:26]}  d4+ {[%clk 0:01:18]} 37. Be4 {[%clk 0:00:24]}  Qf7 {[%clk 0:01:03]} 38. Qh6+ {[%clk 0:00:22]}  Ke8 {[%clk 0:01:03]} 39. Rg7 {[%clk 0:00:21]}  d3 {[%clk 0:01:04]} 40. Rxf7 {[%clk 0:00:20]}  b1=Q+ {[%clk 0:01:04]} 41. Kg2 {[%clk 0:00:15]}  Rb2+ {[%clk 0:01:04]} 42. Kg3 {[%clk 0:00:14]}  Qg1+ {[%clk 0:01:00]} 43. Kf4 {[%clk 0:00:13]}  Qc1+ {[%clk 0:01:01]} 44. Kg3 {[%clk 0:00:09]}  Qxh6 {[%clk 0:01:02]} 45. Rxh7 {[%clk 0:00:08]}  Qg5+ {[%clk 0:01:00]} 46. Kf3 {[%clk 0:00:06]}  Qg2+ {[%clk 0:00:58]} 47. Ke3 {[%clk 0:00:07]}  Qf2# {[%clk 0:00:58]} 0-1


[Site "https://www.chess.com"]

[Event "Titled Tuesday Blitz April 19 Late 2022"]
[White "Yoo, Christopher Woojin"]
[Black "Jessel, Stephen"]
[WhiteFideId "30909694"]
[BlackFideId "628859"]
[WhiteElo "2105"]
[BlackElo "2268"]
[Result "0-1"]
[Round "03"]
[TimeControl "180+1"]
[Date "2022.04.19"]
[WhiteClock "0:00:02"]
[BlackClock "0:00:09"]

1. e4 {[%clk 0:03:00]}  e6 {[%clk 0:02:59]} 2. d4 {[%clk 0:03:01]}  d5 {[%clk 0:02:59]} 3. Nc3 {[%clk 0:03:01]}  Nf6 {[%clk 0:02:58]} 4. Bg5 {[%clk 0:03:01]}  h6 {[%clk 0:02:58]} 5. Bxf6 {[%clk 0:03:00]}  Qxf6 {[%clk 0:02:59]} 6. exd5 {[%clk 0:02:57]}  Bb4 {[%clk 0:03:00]} 7. Bb5+ {[%clk 0:02:47]}  Bd7 {[%clk 0:02:59]} 8. Bxd7+ {[%clk 0:02:36]}  Nxd7 {[%clk 0:03:00]} 9. dxe6 {[%clk 0:02:36]}  Qxe6+ {[%clk 0:02:59]} 10. Ne2 {[%clk 0:02:36]}  Bxc3+ {[%clk 0:02:30]} 11. bxc3 {[%clk 0:02:37]}  O-O-O {[%clk 0:02:25]} 12. O-O {[%clk 0:02:37]}  Rhe8 {[%clk 0:02:25]} 13. Ng3 {[%clk 0:02:22]}  g6 {[%clk 0:02:13]} 14. Qf3 {[%clk 0:02:19]}  h5 {[%clk 0:02:06]} 15. Rfb1 {[%clk 0:02:18]}  Nb6 {[%clk 0:02:02]} 16. Nf1 {[%clk 0:02:18]}  Qe2 {[%clk 0:01:50]} 17. Qxe2 {[%clk 0:02:13]}  Rxe2 {[%clk 0:01:50]} 18. Ne3 {[%clk 0:02:13]}  Nd5 {[%clk 0:01:46]} 19. Nxd5 {[%clk 0:01:11]}  Rxd5 {[%clk 0:01:45]} 20. Rb2 {[%clk 0:01:12]}  Rf5 {[%clk 0:01:31]} 21. Rf1 {[%clk 0:01:10]}  h4 {[%clk 0:01:26]} 22. h3 {[%clk 0:01:08]}  Rd2 {[%clk 0:01:16]} 23. f4 {[%clk 0:00:48]}  b6 {[%clk 0:00:41]} 24. Rf3 {[%clk 0:00:30]}  Rd1+ {[%clk 0:00:34]} 25. Kf2 {[%clk 0:00:28]}  Rd2+ {[%clk 0:00:35]} 26. Kf1 {[%clk 0:00:29]}  a5 {[%clk 0:00:30]} 27. a4 {[%clk 0:00:28]}  Kb7 {[%clk 0:00:23]} 28. Rf2 {[%clk 0:00:14]}  Rxf2+ {[%clk 0:00:23]} 29. Kxf2 {[%clk 0:00:15]}  Rxf4+ {[%clk 0:00:24]} 30. Ke2 {[%clk 0:00:16]}  Kc6 {[%clk 0:00:22]} 31. Rb1 {[%clk 0:00:08]}  Kd5 {[%clk 0:00:20]} 32. Ke3 {[%clk 0:00:07]}  Rf5 {[%clk 0:00:19]} 33. Kd3 {[%clk 0:00:05]}  Rf2 {[%clk 0:00:18]} 34. Rb5+ {[%clk 0:00:06]}  Kd6 {[%clk 0:00:18]} 35. Rg5 {[%clk 0:00:07]}  c6 {[%clk 0:00:14]} 36. c4 {[%clk 0:00:07]}  Rf1 {[%clk 0:00:07]} 37. c5+ {[%clk 0:00:06]}  Kc7 {[%clk 0:00:07]} 38. cxb6+ {[%clk 0:00:03]}  Kxb6 {[%clk 0:00:07]} 39. Rg4 {[%clk 0:00:02]}  Rd1+ {[%clk 0:00:07]} 40. Kc3 {[%clk 0:00:02]}  Ra1 {[%clk 0:00:05]} 41. Kb3 {[%clk 0:00:02]}  Rg1 {[%clk 0:00:05]} 42. c4 {[%clk 0:00:01]}  Kc7 {[%clk 0:00:05]} 43. c5 {[%clk 0:00:01]}  Kd7 {[%clk 0:00:05]} 44. Kc4 {[%clk 0:00:02]}  Ke6 {[%clk 0:00:06]} 45. Re4+ {[%clk 0:00:02]}  Kf6 {[%clk 0:00:06]} 46. Re2 {[%clk 0:00:02]}  Rc1+ {[%clk 0:00:05]} 47. Kd3 {[%clk 0:00:03]}  Ra1 {[%clk 0:00:06]} 48. d5 {[%clk 0:00:02]}  cxd5 {[%clk 0:00:06]} 49. c6 {[%clk 0:00:02]}  Rc1 {[%clk 0:00:07]} 50. Rb2 {[%clk 0:00:01]}  Rxc6 {[%clk 0:00:07]} 51. Rb5 {[%clk 0:00:02]}  Rc4 {[%clk 0:00:06]} 52. Rxa5 {[%clk 0:00:02]}  Rf4 {[%clk 0:00:07]} 53. Ra7 {[%clk 0:00:02]}  Rf2 {[%clk 0:00:06]} 54. a5 {[%clk 0:00:02]}  Rxg2 {[%clk 0:00:07]} 55. a6 {[%clk 0:00:02]}  Ra2 {[%clk 0:00:07]} 56. Kd4 {[%clk 0:00:03]}  Ra5 {[%clk 0:00:07]} 57. Ra8 {[%clk 0:00:02]}  g5 {[%clk 0:00:07]} 58. a7 {[%clk 0:00:02]}  Kf5 {[%clk 0:00:07]} 59. Kc3 {[%clk 0:00:02]}  f6 {[%clk 0:00:05]} 60. Kb4 {[%clk 0:00:02]}  Ra1 {[%clk 0:00:05]} 61. Kb5 {[%clk 0:00:02]}  Kf4 {[%clk 0:00:05]} 62. Kb6 {[%clk 0:00:03]}  f5 {[%clk 0:00:05]} 63. Rd8 {[%clk 0:00:02]}  g4 {[%clk 0:00:06]} 64. hxg4 {[%clk 0:00:02]}  fxg4 {[%clk 0:00:06]} 65. Kc5 {[%clk 0:00:01]}  Rxa7 {[%clk 0:00:06]} 66. Kxd5 {[%clk 0:00:01]}  Rg7 {[%clk 0:00:07]} 67. Rf8+ {[%clk 0:00:02]}  Kg3 {[%clk 0:00:07]} 68. Ke4 {[%clk 0:00:02]}  h3 {[%clk 0:00:08]} 69. Rf1 {[%clk 0:00:02]}  Re7+ {[%clk 0:00:08]} 70. Kd3 {[%clk 0:00:02]}  Kg2 {[%clk 0:00:09]} 0-1


[Site "https://www.chess.com"]

[Event "Titled Tuesday Blitz April 19 Late 2022"]
[White "Zivkovic, Nemanja"]
[Black "Rustemov, Alexander"]
[WhiteFideId "942154"]
[BlackFideId "4119002"]
[WhiteElo "2364"]
[BlackElo "2720"]
[Result "0-1"]
[Round "03"]
[TimeControl "180+1"]
[Date "2022.04.19"]
[WhiteClock "0:00:17"]
[BlackClock "0:00:32"]

1. e4 {[%clk 0:02:59]}  e6 {[%clk 0:02:59]} 2. d4 {[%clk 0:02:57]}  d5 {[%clk 0:02:59]} 3. Nd2 {[%clk 0:02:57]}  dxe4 {[%clk 0:02:56]} 4. Nxe4 {[%clk 0:02:57]}  Bd7 {[%clk 0:02:57]} 5. Nf3 {[%clk 0:02:51]}  Bc6 {[%clk 0:02:57]} 6. Ned2 {[%clk 0:02:51]}  Nd7 {[%clk 0:02:57]} 7. Nc4 {[%clk 0:02:51]}  Ngf6 {[%clk 0:02:55]} 8. Be2 {[%clk 0:02:51]}  Be7 {[%clk 0:02:50]} 9. O-O {[%clk 0:02:49]}  O-O {[%clk 0:02:50]} 10. c3 {[%clk 0:02:48]}  Bd5 {[%clk 0:02:48]} 11. Re1 {[%clk 0:02:44]}  c5 {[%clk 0:02:48]} 12. Ne3 {[%clk 0:02:43]}  Bc6 {[%clk 0:02:46]} 13. c4 {[%clk 0:02:39]}  Be4 {[%clk 0:02:33]} 14. b3 {[%clk 0:02:32]}  cxd4 {[%clk 0:02:28]} 15. Nxd4 {[%clk 0:02:20]}  Bb4 {[%clk 0:02:23]} 16. Bd2 {[%clk 0:02:14]}  Qa5 {[%clk 0:02:18]} 17. Bxb4 {[%clk 0:01:47]}  Qxb4 {[%clk 0:02:19]} 18. a3 {[%clk 0:01:43]}  Qd6 {[%clk 0:02:01]} 19. Nb5 {[%clk 0:01:41]}  Qb8 {[%clk 0:01:53]} 20. Qd6 {[%clk 0:01:37]}  a6 {[%clk 0:01:37]} 21. Qxb8 {[%clk 0:01:35]}  Raxb8 {[%clk 0:01:38]} 22. Nd6 {[%clk 0:01:36]}  Bc6 {[%clk 0:01:36]} 23. b4 {[%clk 0:01:33]}  Rfd8 {[%clk 0:01:35]} 24. Red1 {[%clk 0:01:32]}  Kf8 {[%clk 0:01:34]} 25. c5 {[%clk 0:01:31]}  Ke7 {[%clk 0:01:31]} 26. Nec4 {[%clk 0:01:30]}  Bd5 {[%clk 0:01:30]} 27. Rac1 {[%clk 0:01:28]}  Ne8 {[%clk 0:01:19]} 28. f3 {[%clk 0:01:23]}  Nxd6 {[%clk 0:01:17]} 29. cxd6+ {[%clk 0:01:02]}  Kf8 {[%clk 0:01:14]} 30. Ne3 {[%clk 0:01:02]}  Nf6 {[%clk 0:01:12]} 31. Nxd5 {[%clk 0:00:56]}  exd5 {[%clk 0:01:09]} 32. Rc7 {[%clk 0:00:54]}  Rxd6 {[%clk 0:01:09]} 33. Rdc1 {[%clk 0:00:54]}  Rd7 {[%clk 0:01:06]} 34. Bd3 {[%clk 0:00:52]}  g6 {[%clk 0:01:04]} 35. Kf2 {[%clk 0:00:52]}  Ke7 {[%clk 0:01:03]} 36. Ke3 {[%clk 0:00:49]}  Kd6 {[%clk 0:01:03]} 37. Rxd7+ {[%clk 0:00:44]}  Nxd7 {[%clk 0:01:03]} 38. Kd4 {[%clk 0:00:45]}  Ne5 {[%clk 0:01:03]} 39. f4 {[%clk 0:00:39]}  Nc6+ {[%clk 0:01:02]} 40. Ke3 {[%clk 0:00:40]}  Re8+ {[%clk 0:01:00]} 41. Kd2 {[%clk 0:00:40]}  Nd4 {[%clk 0:00:48]} 42. Rf1 {[%clk 0:00:38]}  f5 {[%clk 0:00:43]} 43. Kc3 {[%clk 0:00:35]}  Ne6 {[%clk 0:00:42]} 44. g3 {[%clk 0:00:31]}  Rc8+ {[%clk 0:00:42]} 45. Kd2 {[%clk 0:00:30]}  h6 {[%clk 0:00:41]} 46. g4 {[%clk 0:00:26]}  fxg4 {[%clk 0:00:38]} 47. Bxg6 {[%clk 0:00:26]}  Rf8 {[%clk 0:00:39]} 48. f5 {[%clk 0:00:26]}  Ng5 {[%clk 0:00:38]} 49. Kd3 {[%clk 0:00:24]}  Nf3 {[%clk 0:00:34]} 50. h3 {[%clk 0:00:17]}  Ne5+ {[%clk 0:00:32]} 0-1


[Site "https://www.chess.com"]

[Event "Titled Tuesday Blitz April 19 Late 2022"]
[White "Zor, Alber Kadir"]
[Black "Suder, Jakub"]
[WhiteFideId "6353169"]
[BlackFideId "1195310"]
[WhiteElo "1966"]
[BlackElo "2058"]
[Result "0-1"]
[Round "03"]
[TimeControl "180+1"]
[Date "2022.04.19"]
[WhiteClock "0:00:01"]
[BlackClock "0:00:05"]

1. d4 {[%clk 0:02:38]}  d5 {[%clk 0:02:44]} 2. c4 {[%clk 0:02:36]}  dxc4 {[%clk 0:02:44]} 3. e4 {[%clk 0:02:36]}  Nf6 {[%clk 0:02:42]} 4. e5 {[%clk 0:02:07]}  Nd5 {[%clk 0:02:42]} 5. Bxc4 {[%clk 0:02:06]}  Nb6 {[%clk 0:02:41]} 6. Bd3 {[%clk 0:02:06]}  Nc6 {[%clk 0:02:40]} 7. Be3 {[%clk 0:02:06]}  Nb4 {[%clk 0:02:30]} 8. Be4 {[%clk 0:02:03]}  N4d5 {[%clk 0:02:30]} 9. Nd2 {[%clk 0:01:54]}  c6 {[%clk 0:02:25]} 10. Ngf3 {[%clk 0:01:37]}  Bg4 {[%clk 0:02:24]} 11. h3 {[%clk 0:01:33]}  Bh5 {[%clk 0:02:24]} 12. O-O {[%clk 0:01:30]}  e6 {[%clk 0:02:24]} 13. Rc1 {[%clk 0:01:27]}  Be7 {[%clk 0:02:23]} 14. Nb3 {[%clk 0:01:24]}  O-O {[%clk 0:02:12]} 15. Nc5 {[%clk 0:01:18]}  Bxc5 {[%clk 0:02:08]} 16. Rxc5 {[%clk 0:01:19]}  Bg6 {[%clk 0:01:54]} 17. Bxg6 {[%clk 0:01:14]}  fxg6 {[%clk 0:01:52]} 18. Nd2 {[%clk 0:01:05]}  Qd7 {[%clk 0:01:38]} 19. Ne4 {[%clk 0:01:03]}  Nc8 {[%clk 0:01:37]} 20. Rc1 {[%clk 0:01:00]}  Nce7 {[%clk 0:01:37]} 21. Nc5 {[%clk 0:01:00]}  Qc8 {[%clk 0:01:36]} 22. Ne4 {[%clk 0:00:57]}  Qd7 {[%clk 0:01:33]} 23. Nc5 {[%clk 0:00:56]}  Qc8 {[%clk 0:01:34]} 24. a3 {[%clk 0:00:52]}  Nf5 {[%clk 0:01:33]} 25. b4 {[%clk 0:00:44]}  Rf7 {[%clk 0:01:28]} 26. Ne4 {[%clk 0:00:34]}  Qd7 {[%clk 0:01:22]} 27. Nc5 {[%clk 0:00:32]}  Qe7 {[%clk 0:01:22]} 28. Re1 {[%clk 0:00:31]}  Raf8 {[%clk 0:01:22]} 29. Qg4 {[%clk 0:00:28]}  Kh8 {[%clk 0:00:38]} 30. Ne4 {[%clk 0:00:26]}  Qe8 {[%clk 0:00:27]} 31. Nd6 {[%clk 0:00:26]}  Nxd6 {[%clk 0:00:26]} 32. exd6 {[%clk 0:00:26]}  Qd7 {[%clk 0:00:26]} 33. Qg3 {[%clk 0:00:23]}  Rd8 {[%clk 0:00:22]} 34. Bg5 {[%clk 0:00:21]}  Rdf8 {[%clk 0:00:20]} 35. f3 {[%clk 0:00:16]}  h6 {[%clk 0:00:19]} 36. Be7 {[%clk 0:00:15]}  Nxe7 {[%clk 0:00:18]} 37. dxe7 {[%clk 0:00:15]}  Qxd4+ {[%clk 0:00:16]} 38. Kh1 {[%clk 0:00:15]}  Rxe7 {[%clk 0:00:17]} 39. Qxg6 {[%clk 0:00:14]}  Qf6 {[%clk 0:00:17]} 40. Qe4 {[%clk 0:00:12]}  Rd8 {[%clk 0:00:17]} 41. Rcd1 {[%clk 0:00:11]}  Rd5 {[%clk 0:00:14]} 42. Rxd5 {[%clk 0:00:09]}  cxd5 {[%clk 0:00:15]} 43. Qc2 {[%clk 0:00:08]}  Qf8 {[%clk 0:00:13]} 44. Rc1 {[%clk 0:00:08]}  Qd8 {[%clk 0:00:11]} 45. Qg6 {[%clk 0:00:07]}  e5 {[%clk 0:00:08]} 46. Qg3 {[%clk 0:00:04]}  d4 {[%clk 0:00:08]} 47. Re1 {[%clk 0:00:03]}  Qd6 {[%clk 0:00:05]} 48. f4 {[%clk 0:00:02]}  e4 {[%clk 0:00:05]} 49. Qf2 {[%clk 0:00:01]}  Kh7 {[%clk 0:00:05]} 0-1


[Site "https://www.chess.com"]